bitfinex/quotes_SOLUSD_20240811
["timestamp","ask_amount","ask_price","bid_price","bid_amount"]
[1723384704526,0.12549,151.54,151.49,31.72]
[1723384704731,45.0,151.55,151.51,11.72]
[1723384705750,45.0,151.55,151.5,11.72]
[1723384709843,45.0,151.55,151.52,11.72]
[1723384710049,15.8174,151.59,151.52,11.72]
[1723384710249,0.12549,151.57,151.52,11.72]
[1723384710446,15.8174,151.59,151.52,11.72]
[1723384710636,15.8174,151.59,151.54,11.72]
[1723384711147,15.8174,151.59,151.57,11.72]
[1723384712350,15.8174,151.59,151.56,11.72]
[1723384712649,15.8174,151.59,151.53,31.72]
[1723384712953,0.12549,151.57,151.5,6.1173]
[1723384713132,0.37647,151.57,151.51,11.72]
[1723384713531,0.12549,151.56,151.49,11.72]
[1723384713732,45.37647,151.56,151.49,11.72]
[1723384714332,47.02645666,151.56,151.49,11.72]
[1723384714646,0.12549,151.55,151.49,11.72]
[1723384714851,0.37647,151.55,151.49,11.72]
[1723384715047,0.37647,151.55,151.51,11.72]
[1723384715237,0.25098,151.55,151.51,11.72]
[1723384715837,0.25098,151.55,151.5,23.43]
[1723384716949,0.25098,151.55,151.47,0.8160335]
[1723384717150,0.25098,151.55,151.49,23.43]
[1723384717354,0.25098,151.55,151.5,20.0]
[1723384717659,0.12549,151.54,151.5,20.0]
[1723384717847,0.25098,151.54,151.5,20.0]
[1723384718033,6.2097,151.58,151.5,20.0]
[1723384718243,6.2097,151.58,151.51,23.43]
[1723384718434,15.8174,151.59,151.53,23.43]
[1723384718954,15.8174,151.59,151.54,23.43]
[1723384719159,15.8174,151.59,151.5,20.0]
[1723384719355,39.2474,151.59,151.5,23.43]
[1723384719536,39.2474,151.59,151.51,20.0]
[1723384719742,45.0,151.58,151.51,20.0]
[1723384720268,45.0,151.58,151.52,23.43]
[1723384720447,45.0,151.58,151.53,20.0]
[1723384720652,15.8174,151.59,151.53,20.0]
[1723384720837,15.8174,151.59,151.54,23.43]
[1723384721162,15.8174,151.59,151.53,20.0]
[1723384721342,29.6397,151.58,151.47,0.8160335]
[1723384721861,0.12549,151.57,151.48,23.43]
[1723384722159,45.50196,151.57,151.48,23.43]
[1723384722550,45.50196,151.57,151.47,0.8160335]
[1723384722551,45.25098,151.57,151.5,23.43]
[1723384722738,0.12549,151.56,151.5,23.43]
[1723384722943,0.25098,151.56,151.48,23.43]
[1723384723159,0.25098,151.56,151.49,20.0]
[1723384723540,0.25098,151.55,151.49,20.0]
[1723384723866,15.1423,151.54,151.49,20.0]
[1723384724166,45.0,151.53,151.49,20.0]
[1723384724669,15.1423,151.54,151.49,20.0]
[1723384726767,15.1423,151.54,151.5,23.43]
[1723384727644,15.1423,151.54,151.51,20.0]
[1723384729180,15.1423,151.54,151.5,23.43]
[1723384729470,15.1423,151.54,151.51,20.0]
[1723384732565,21.2336,151.58,151.51,20.0]
[1723384732767,15.0239,151.58,151.52,23.43]
[1723384734236,15.0239,151.58,151.51,20.0]
[1723384735486,45.0,151.57,151.51,20.0]
[1723384736676,15.0239,151.58,151.51,20.0]
[1723384737977,15.0239,151.58,151.51,31.72]
[1723384740396,6.5103,151.62,151.55,11.72]
[1723384740397,21.5342,151.62,151.55,11.72]
[1723384740572,15.0239,151.62,151.57,11.72]
[1723384740773,15.0239,151.62,151.55,11.72]
[1723384741005,11.72,151.61,151.51,26.1958]
[1723384741291,11.72,151.59,151.51,37.9158]
[1723384741472,11.72,151.59,151.51,31.72]
[1723384741887,45.0,151.58,151.51,31.72]
[1723384742980,0.25098,151.57,151.51,20.0]
[1723384747101,15.9944,151.56,151.51,20.0]
[1723384747906,15.9944,151.56,151.5,20.0]
[1723384749888,15.9944,151.56,151.53,23.43]
[1723384750088,15.9944,151.6,151.55,23.43]
[1723384750287,22.2229,151.64,151.57,23.43]
[1723384751685,45.37647,151.63,151.57,23.43]
[1723384752910,45.37647,151.63,151.56,20.0]
[1723384753093,0.12549,151.62,151.56,20.0]
[1723384754018,45.37647,151.63,151.56,20.0]
[1723384754314,45.0,151.63,151.56,20.0]
[1723384754500,45.0,151.63,151.57,23.43]
[1723384755310,15.9944,151.68,151.61,23.43]
[1723384756387,6.8842884,151.7,151.63,23.43]
[1723384756591,6.8842884,151.7,151.65,23.43]
[1723384757112,15.9944,151.72,151.65,23.43]
[1723384758720,0.12549,151.71,151.65,23.43]
[1723384758912,0.25098,151.71,151.65,23.43]
[1723384759108,0.12549,151.71,151.65,23.43]
[1723384759324,15.9944,151.72,151.65,23.43]
[1723384760024,15.9944,151.72,151.66,20.0]
[1723384761105,45.12549,151.71,151.66,20.0]
[1723384761518,45.12549,151.71,151.63,23.43]
[1723384761519,45.12549,151.71,151.64,20.0]
[1723384762223,45.0,151.71,151.65,23.43]
[1723384762427,15.9944,151.72,151.66,20.0]
[1723384765005,45.12549,151.71,151.66,20.0]
[1723384765217,45.25098,151.71,151.64,20.0]
[1723384768305,15.9944,151.72,151.65,23.43]
[1723384768541,15.9944,151.72,151.67,23.43]
[1723384770223,15.9944,151.72,151.65,23.43]
[1723384770410,15.9944,151.72,151.66,20.0]
[1723384770932,22.81712718,151.76,151.69,23.43]
[1723384771136,15.9337,151.76,151.69,23.43]
[1723384772744,0.12549,151.75,151.69,23.43]
[1723384772920,0.25098,151.75,151.69,23.43]
[1723384773120,15.9337,151.76,151.69,23.43]
[1723384773321,45.0,151.75,151.69,23.43]
[1723384773753,15.9337,151.76,151.71,23.43]
[1723384776073,15.9337,151.76,151.72,20.0]
[1723384778930,15.9337,151.76,151.68,23.43]
[1723384779152,45.0,151.75,151.68,23.43]
[1723384779328,45.0,151.75,151.69,20.0]
[1723384782435,15.9337,151.76,151.69,20.0]
[1723384783662,45.0,151.75,151.69,20.0]
[1723384784146,15.9337,151.76,151.69,20.0]
[1723384784456,15.9337,151.76,151.7,23.43]
[1723384784638,15.9337,151.76,151.71,20.0]
[1723384785462,15.9337,151.76,151.72,23.43]
[1723384785758,15.9337,151.81,151.72,23.43]
[1723384785934,27.6137,151.81,151.73,11.68]
[1723384786438,0.12549,151.79,151.71,20.0]
[1723384786643,57.18196,151.79,151.71,11.68]
[1723384786851,64.05812758,151.79,151.72,20.0]
[1723384787248,64.05812758,151.79,151.72,31.68]
[1723384787455,57.18196,151.79,151.72,31.68]
[1723384787955,45.50196,151.79,151.72,20.0]
[1723384788155,45.50196,151.79,151.71,20.0]
[1723384790167,52.3782257,151.79,151.71,20.0]
[1723384790552,45.50196,151.79,151.71,20.0]
[1723384791781,52.37819616,151.79,151.71,20.0]
[1723384792976,45.50196,151.79,151.71,20.0]
[1723384794965,52.37823744,151.79,151.71,20.0]
[1723384800154,16.5558,151.78,151.7,23.37]
[1723384800360,51.78619,151.77,151.69,23.37]
[1723384800564,6.78619,151.77,151.7,20.0]
[1723384801773,0.12549,151.76,151.7,20.0]
[1723384801953,6.28619,151.77,151.71,23.37]
[1723384802354,6.28619,151.77,151.65,20.12549]
[1723384802355,45.37647,151.76,151.69,23.37]
[1723384802564,45.37647,151.76,151.7,20.0]
[1723384802981,45.25098,151.76,151.7,20.0]
[1723384803187,0.12549,151.75,151.7,20.0]
[1723384803383,0.12549,151.73,151.64,12.81019737]
[1723384803560,0.12549,151.73,151.64,29.99429737]
[1723384803561,46.89911578,151.73,151.64,29.99429737]
[1723384803757,0.12549,151.72,151.64,23.37]
[1723384803968,0.25098,151.72,151.64,23.37]
[1723384804193,45.0,151.73,151.66,23.37]
[1723384805278,16.5558,151.74,151.68,23.37]
[1723384805457,16.5558,151.74,151.69,20.0]
[1723384808482,45.0,151.73,151.68,23.37]
[1723384808691,45.0,151.73,151.69,20.0]
[1723384808860,45.0,151.73,151.67,20.0]
[1723384809168,0.25098,151.72,151.64,23.37]
[1723384809369,0.25098,151.71,151.64,23.37]
[1723384809593,0.12549,151.7,151.62,23.37]
[1723384809767,45.12549,151.7,151.62,23.37]
[1723384809963,45.12549,151.7,151.63,11.7]
[1723384811169,45.12549,151.7,151.64,11.7]
[1723384811368,45.0,151.7,151.65,11.7]
[1723384811581,45.0,151.7,151.66,11.7]
[1723384811764,6.205,151.71,151.67,11.7]
[1723384812079,6.205,151.71,151.66,23.39]
[1723384813190,0.12549,151.73,151.66,23.39]
[1723384813377,45.50196,151.73,151.66,23.39]
[1723384815191,16.5558,151.74,151.68,23.39]
[1723384815365,16.5558,151.74,151.72,23.39]
[1723384815568,15.4519,151.78,151.72,23.39]
[1723384815780,15.4519,151.78,151.69,23.39]
[1723384816105,25.03778981,151.77,151.67,23.39]
[1723384816280,28.0023,151.77,151.68,20.0]
[1723384816462,0.12549,151.76,151.67,23.39]
[1723384816662,0.50196,151.76,151.68,20.0]
[1723384817186,45.50196,151.76,151.68,20.0]
[1723384817401,0.25098,151.76,151.69,23.39]
[1723384817791,38.8419,151.75,151.65,23.39]
[1723384817991,0.25098,151.74,151.66,20.0]
[1723384818594,1.89914838,151.74,151.66,20.0]
[1723384818794,0.25098,151.73,151.66,20.0]
[1723384819108,0.25098,151.72,151.66,20.0]
[1723384819291,0.12549,151.72,151.67,23.39]
[1723384819491,15.4519,151.75,151.71,23.39]
[1723384823501,15.4519,151.75,151.69,23.39]
[1723384823804,15.4519,151.75,151.7,20.0]
[1723384827013,46.64782536,151.74,151.7,20.0]
[1723384827506,1.64786608,151.73,151.67,23.39]
[1723384827709,1.64786608,151.73,151.65,23.39]
[1723384828203,0.12549,151.73,151.65,23.39]
[1723384828393,0.12549,151.72,151.65,23.39]
[1723384828588,0.25098,151.72,151.65,23.39]
[1723384829209,45.25098,151.72,151.66,20.0]
[1723384830309,0.12549,151.71,151.66,20.0]
[1723384830514,0.12549,151.69,151.6,4.25263679]
[1723384830720,47.15057495,151.69,151.6,23.39]
[1723384830907,45.50196,151.69,151.6,23.39]
[1723384831096,45.50196,151.69,151.58,6.6366]
[1723384831097,45.37647,151.69,151.62,23.39]
[1723384831297,45.25098,151.69,151.62,23.39]
[1723384832198,45.25098,151.69,151.63,20.0]
[1723384835224,0.12549,151.68,151.63,20.0]
[1723384835428,0.50196,151.68,151.63,20.0]
[1723384838309,0.50196,151.68,151.61,20.0]
[1723384839926,0.50196,151.68,151.61,31.7]
[1723384842125,12.20196,151.68,151.61,31.7]
[1723384842424,45.0,151.67,151.61,20.0]
[1723384842624,45.0,151.67,151.61,11.7]
[1723384843116,45.0,151.67,151.62,20.0]
[1723384845735,45.0,151.67,151.62,31.7]
[1723384845911,15.237,151.7,151.62,31.7]
[1723384845912,15.237,151.7,151.64,11.7]
[1723384846235,45.12549,151.69,151.64,11.7]
[1723384846443,45.12549,151.69,151.65,11.7]
[1723384846444,45.0,151.69,151.65,11.7]
[1723384846612,15.237,151.7,151.66,11.7]
[1723384846818,15.237,151.7,151.65,11.7]
[1723384848062,15.237,151.7,151.64,11.7]
[1723384849762,45.0,151.69,151.63,11.7]
[1723384849961,45.0,151.69,151.64,20.0]
[1723384851175,56.7,151.69,151.63,20.0]
[1723384852652,0.25098,151.68,151.63,20.0]
[1723384853451,0.12549,151.68,151.63,20.0]
[1723384853758,0.25098,151.68,151.62,20.0]
[1723384854929,0.25098,151.68,151.61,11.7]
[1723384854930,11.95098,151.68,151.61,11.7]
[1723384855248,45.0,151.67,151.62,20.0]
[1723384859758,45.0,151.67,151.62,31.7]
[1723384860356,0.25098,151.68,151.62,31.7]
[1723384860357,45.25098,151.68,151.62,31.7]
[1723384862850,45.0,151.67,151.62,31.7]
[1723384863155,0.12549,151.68,151.62,31.7]
[1723384863361,45.0,151.69,151.64,11.7]
[1723384863549,45.0,151.69,151.62,20.0]
[1723384863550,15.237,151.7,151.65,11.7]
[1723384864568,15.237,151.7,151.66,11.7]
[1723384864774,23.44651796,151.75,151.69,11.7]
[1723384865065,23.44651796,151.75,151.71,11.7]
[1723384865260,16.5682,151.75,151.71,11.7]
[1723384866339,15.0352,151.79,151.72,11.7]
[1723384867568,11.7,151.77,151.69,11.7]
[1723384867752,45.37647,151.76,151.7,20.0]
[1723384868059,45.12549,151.76,151.71,11.7]
[1723384868266,26.7352,151.79,151.72,11.7]
[1723384868466,45.0,151.78,151.72,11.7]
[1723384868760,26.7352,151.79,151.72,11.7]
[1723384868941,15.0352,151.79,151.73,11.7]
[1723384869377,15.0352,151.79,151.7,20.0]
[1723384869378,15.0352,151.79,151.77,11.7]
[1723384869536,15.0352,151.83,151.77,11.7]
[1723384870366,15.0352,151.83,151.79,11.7]
[1723384872473,15.0352,151.83,151.72,2.62058966]
[1723384872659,15.0352,151.83,151.76,11.7]
[1723384872862,15.0352,151.83,151.77,20.0]
[1723384873053,45.0,151.82,151.77,20.0]
[1723384873649,45.0,151.82,151.77,31.7]
[1723384873978,15.0352,151.83,151.77,31.7]
[1723384875073,15.0352,151.83,151.77,20.0]
[1723384875270,45.12549,151.82,151.76,11.7]
[1723384875467,45.12549,151.82,151.77,20.0]
[1723384876847,45.0,151.82,151.77,20.0]
[1723384878260,11.7,151.8,151.71,6.0679]
[1723384878463,45.0,151.79,151.72,11.7]
[1723384878650,46.64732252,151.79,151.72,11.7]
[1723384879080,46.64732252,151.79,151.73,11.7]
[1723384879659,46.6473266,151.79,151.74,20.0]
[1723384879864,11.7,151.76,151.69,11.7]
[1723384880064,46.64774758,151.75,151.69,11.7]
[1723384880385,45.0,151.75,151.69,11.7]
[1723384880676,56.7,151.76,151.69,11.7]
[1723384880852,0.12549,151.75,151.69,11.7]
[1723384881256,0.12549,151.75,151.7,20.0]
[1723384881452,11.95098,151.75,151.65,15.2261]
[1723384881649,45.12549,151.74,151.67,11.7]
[1723384882078,45.12549,151.74,151.68,11.7]
[1723384882649,45.12549,151.74,151.69,20.0]
[1723384883675,45.12549,151.74,151.63,13.81265202]
[1723384883676,11.7,151.72,151.63,13.81265202]
[1723384883897,46.64817421,151.71,151.65,11.7]
[1723384884097,46.64817421,151.71,151.61,15.2261]
[1723384884098,15.0352,151.7,151.61,15.2261]
[1723384884384,11.82549,151.68,151.61,11.7]
[1723384884591,11.82549,151.68,151.59,13.81265202]
[1723384884592,46.64861819,151.67,151.59,13.81265202]
[1723384884963,12.07647,151.66,151.58,11.7]
[1723384885167,58.34887241,151.65,151.57,10.32502933]
[1723384885374,11.7,151.61,151.57,10.32502933]
[1723384885669,58.47481692,151.6,151.57,10.32502933]
[1723384885888,58.47481692,151.6,151.5,6.0679]
[1723384886066,11.7,151.59,151.51,11.7]
[1723384886264,15.9086,151.56,151.48,10.33300359]
[1723384886585,45.0,151.55,151.49,11.7]
[1723384887488,45.0,151.55,151.5,11.7]
[1723384887860,45.0,151.55,151.48,23.44]
[1723384888276,45.0,151.55,151.49,20.0]
[1723384889065,45.0,151.55,151.5,23.44]
[1723384889259,15.9086,151.56,151.52,23.44]
[1723384889493,15.9086,151.61,151.54,23.44]
[1723384889783,15.9086,151.61,151.56,23.44]
[1723384890693,15.9086,151.61,151.58,23.44]
[1723384893204,0.12549,151.65,151.6,23.44]
[1723384893378,15.9086,151.66,151.64,23.44]
[1723384893779,6.4781,151.71,151.64,23.44]
[1723384893991,15.9086,151.7,151.64,23.44]
[1723384894217,15.9086,151.7,151.66,23.44]
[1723384894499,6.87930019,151.74,151.65,20.0]
[1723384894703,4.6132,151.74,151.64,23.44]
[1723384894882,11.49144759,151.74,151.65,20.0]
[1723384895703,0.25098,151.73,151.65,20.0]
[1723384895872,0.12549,151.72,151.65,20.0]
[1723384896072,0.12549,151.72,151.58,13.95915202]
[1723384896277,0.12549,151.72,151.63,23.44]
[1723384896679,6.87824759,151.74,151.65,23.44]
[1723384896891,6.87824759,151.74,151.67,23.44]
[1723384897180,15.9086,151.75,151.67,23.44]
[1723384897883,15.9086,151.75,151.69,23.44]
[1723384899304,15.9086,151.75,151.71,23.44]
[1723384899806,15.9086,151.75,151.69,23.44]
[1723384900020,1.64793062,151.74,151.67,23.44]
[1723384900192,1.64792624,151.73,151.68,20.0]
[1723384901000,45.0,151.74,151.68,20.0]
[1723384901518,45.0,151.74,151.69,23.44]
[1723384902914,15.9086,151.75,151.69,23.44]
[1723384903210,15.9086,151.75,151.71,23.44]
[1723384905096,0.12549,151.74,151.63,12.43353769]
[1723384905419,47.14999697,151.74,151.68,23.44]
[1723384906495,45.50196,151.74,151.68,23.44]
[1723384907111,45.50196,151.74,151.69,20.0]
[1723384907615,45.50196,151.74,151.68,23.44]
[1723384907790,45.50196,151.74,151.69,20.0]
[1723384907991,47.14995684,151.74,151.69,20.0]
[1723384908192,1.64804988,151.73,151.69,20.0]
[1723384908422,1.64804988,151.73,151.67,20.0]
[1723384908617,1.64804988,151.73,151.63,12.43353769]
[1723384908618,0.12549,151.72,151.63,12.43353769]
[1723384908917,8.16931269,151.72,151.63,23.44]
[1723384909119,0.12549,151.7,151.63,23.44]
[1723384909319,2.15043484,151.7,151.63,23.44]
[1723384910208,2.15043484,151.7,151.64,20.0]
[1723384910802,0.12549,151.68,151.59,23.44]
[1723384911003,47.15084173,151.68,151.58,6.21913769]
[1723384911239,47.15084173,151.68,151.58,23.44]
[1723384911725,47.15084173,151.68,151.6,23.44]
[1723384911934,45.50196,151.68,151.62,23.44]
[1723384913512,45.37647,151.68,151.62,23.44]
[1723384913719,45.37647,151.68,151.63,20.0]
[1723384914206,1.6485925,151.67,151.63,20.0]
[1723384914406,0.12549,151.68,151.63,20.0]
[1723384914602,0.37647,151.68,151.63,20.0]
[1723384915718,45.37647,151.68,151.63,20.0]
[1723384917121,0.12549,151.67,151.63,20.0]
[1723384917301,0.50196,151.67,151.6,23.44]
[1723384918611,0.50196,151.67,151.63,23.44]
[1723384919122,45.0,151.68,151.63,23.44]
[1723384919719,45.0,151.68,151.61,20.0]
[1723384919909,45.0,151.68,151.62,23.44]
[1723384920214,45.0,151.68,151.63,20.0]
[1723384921126,15.5308,151.69,151.64,23.44]
[1723384921309,15.5308,151.69,151.66,23.44]
[1723384921624,15.5308,151.69,151.67,23.44]
[1723384922012,6.0191,151.72,151.67,23.44]
[1723384922416,7.66717054,151.72,151.67,23.44]
[1723384923135,7.66716963,151.72,151.67,23.44]
[1723384923632,6.0191,151.72,151.65,23.44]
[1723384923837,0.25098,151.71,151.66,20.0]
[1723384924532,45.25098,151.71,151.66,20.0]
[1723384925431,45.12549,151.71,151.66,20.0]
[1723384927227,6.14459,151.72,151.66,20.0]
[1723384927414,6.0191,151.72,151.67,23.44]
[1723384929740,6.0191,151.72,151.66,20.0]
[1723384929936,6.0191,151.72,151.67,23.44]
[1723384930521,1.64815008,151.71,151.65,23.44]
[1723384930723,1.6483135,151.7,151.66,20.0]
[1723384931617,45.0,151.71,151.66,20.0]
[1723384931819,0.12549,151.7,151.66,20.0]
[1723384932025,0.37647,151.7,151.66,20.0]
[1723384932315,0.37647,151.7,151.63,23.44]
[1723384932513,0.37647,151.7,151.64,20.0]
[1723384932715,0.12549,151.69,151.63,23.44]
[1723384932939,0.25098,151.69,151.61,23.44]
[1723384933242,0.25098,151.69,151.63,23.44]
[1723384934242,0.25098,151.68,151.63,23.44]
[1723384934544,0.12549,151.65,151.58,6.21913769]
[1723384934720,47.02547439,151.65,151.57,23.44]
[1723384934911,47.15096439,151.65,151.57,23.44]
[1723384936127,16.0299,151.64,151.52,6.3657]
[1723384936446,47.1513701,151.63,151.54,23.44]
[1723384936940,70.5913701,151.63,151.52,23.44]
[1723384937240,45.50196,151.63,151.56,23.44]
[1723384937750,45.50196,151.63,151.48,13.30551277]
[1723384937751,45.50196,151.63,151.54,23.44]
[1723384938045,0.12549,151.61,151.54,23.44]
[1723384938352,0.50196,151.61,151.54,23.44]
[1723384938730,23.94196,151.61,151.51,23.44]
[1723384938934,0.12549,151.59,151.51,23.44]
[1723384939129,0.50196,151.59,151.51,23.44]
[1723384939542,16.0299,151.57,151.51,23.44]
[1723384939849,45.0,151.56,151.51,23.44]
[1723384940960,45.0,151.56,151.52,20.0]
[1723384944459,45.0,151.56,151.51,23.44]
[1723384944649,1.64981612,151.55,151.51,23.44]
[1723384944867,0.25098,151.54,151.49,23.44]
[1723384945232,0.12549,151.54,151.49,23.44]
[1723384945473,45.0,151.56,151.49,23.44]
[1723384945765,16.0299,151.62,151.55,23.44]
[1723384946055,16.0299,151.62,151.57,23.44]
[1723384946247,16.0299,151.62,151.59,23.44]
[1723384946453,16.0299,151.62,151.54,0.12549]
[1723384946630,16.0299,151.62,151.61,23.44]
[1723384946834,16.0299,151.62,151.59,23.44]
[1723384947954,16.0299,151.62,151.57,23.44]
[1723384948157,45.0,151.61,151.58,20.0]
[1723384948846,45.0,151.61,151.57,23.44]
[1723384951068,16.0299,151.62,151.59,23.44]
[1723384951361,16.0299,151.62,151.53,0.12549]
[1723384951567,16.0299,151.62,151.58,23.44]
[1723384951871,45.0,151.61,151.58,23.44]
[1723384952175,45.0,151.61,151.56,23.44]
[1723384952345,45.0,151.61,151.57,20.0]
[1723384952541,0.12549,151.6,151.54,23.44]
[1723384952756,2.15143206,151.6,151.54,23.44]
[1723384952962,2.15143206,151.6,151.52,23.44]
[1723384953166,0.12549,151.58,151.52,23.44]
[1723384953343,45.50196,151.58,151.52,23.44]
[1723384953741,45.50196,151.58,151.5,23.44]
[1723384953942,45.50196,151.58,151.49,32.48005556]
[1723384954641,0.12549,151.56,151.49,32.48005556]
[1723384954874,45.50196,151.56,151.49,29.29]
[1723384955241,1.65001474,151.55,151.49,29.29]
[1723384955536,45.50196,151.56,151.49,29.29]
[1723384956039,1.65009376,151.55,151.49,29.29]
[1723384956237,1.90107347,151.54,151.47,30.1060335]
[1723384956465,1.90107347,151.54,151.48,20.0]
[1723384956638,1.90107347,151.54,151.47,30.1060335]
[1723384956842,0.25098,151.53,151.47,0.8160335]
[1723384957045,0.12549,151.52,151.47,0.8160335]
[1723384957249,15.4264,151.51,151.47,0.8160335]
[1723384957463,45.0,151.5,151.47,0.8160335]
[1723384957665,15.4264,151.51,151.47,0.8160335]
[1723384958354,22.32011503,151.55,151.47,0.8160335]
[1723384958542,22.32011503,151.55,151.48,29.29]
[1723384958746,15.4264,151.55,151.48,29.29]
[1723384959767,45.50196,151.54,151.47,0.8160335]
[1723384959965,47.15260357,151.54,151.47,0.8160335]
[1723384960645,45.50196,151.54,151.47,0.8160335]
[1723384961349,51.77158428,151.54,151.47,0.8160335]
[1723384961562,4.6195,151.53,151.47,0.8160335]
[1723384961763,0.12549,151.51,151.47,0.8160335]
[1723384961967,8.13562793,151.51,151.47,0.8160335]
[1723384962153,0.12549,151.5,151.47,0.8160335]
[1723384962465,45.37647,151.5,151.47,0.8160335]
[1723384962769,0.12549,151.49,151.47,0.8160335]
[1723384962968,0.37647,151.49,151.47,0.8160335]
[1723384965065,45.12549,151.5,151.47,0.8160335]
[1723384965276,45.0,151.5,151.47,0.8160335]
[1723384965668,45.0,151.5,151.47,30.1060335]
[1723384965857,15.4264,151.55,151.49,29.29]
[1723384966055,15.4264,151.55,151.51,29.29]
[1723384966876,15.4264,151.55,151.47,0.8160335]
[1723384967176,0.12549,151.53,151.47,0.8160335]
[1723384967472,2.02697697,151.53,151.47,0.8160335]
[1723384967654,0.12549,151.52,151.47,0.8160335]
[1723384969650,0.12549,151.52,151.48,29.29]
[1723384969855,15.4264,151.55,151.5,29.29]
[1723384971373,0.12549,151.54,151.5,29.29]
[1723384971591,45.37647,151.54,151.5,29.29]
[1723384971764,6.89298311,151.59,151.53,29.29]
[1723384971948,16.1565,151.6,151.55,29.29]
[1723384972278,16.1565,151.6,151.56,20.0]
[1723384975077,16.1565,151.6,151.55,29.29]
[1723384975270,45.12549,151.59,151.55,29.29]
[1723384975465,45.12549,151.59,151.53,29.29]
[1723384975680,45.12549,151.59,151.54,20.0]
[1723384977662,23.04951091,151.64,151.57,29.29]
[1723384977969,6.89301091,151.64,151.62,29.29]
[1723384978278,16.1565,151.68,151.6,29.29]
[1723384978878,16.1565,151.68,151.58,49.29]
[1723384979082,16.1565,151.68,151.6,29.29]
[1723384980660,1.64896917,151.67,151.6,29.29]
[1723384981074,16.1565,151.68,151.6,29.29]
[1723384981276,0.12549,151.66,151.6,29.29]
[1723384981479,0.25098,151.66,151.6,29.29]
[1723384981664,16.1565,151.68,151.62,29.29]
[1723384982685,1.64881381,151.67,151.58,29.29]
[1723384982885,0.50196,151.66,151.59,20.0]
[1723384984069,0.50196,151.66,151.56,29.29]
[1723384984591,0.50196,151.66,151.58,29.29]
[1723384985193,0.37647,151.66,151.6,29.29]
[1723384985383,0.12549,151.65,151.6,29.29]
[1723384985565,0.12549,151.65,151.58,29.29]
[1723384985772,0.12549,151.65,151.56,29.29]
[1723384986093,0.12549,151.65,151.57,20.0]
[1723384986679,1.77464158,151.65,151.57,20.0]
[1723384986873,0.12549,151.63,151.57,20.0]
[1723384987566,0.12549,151.63,151.56,29.29]
[1723384989699,0.12549,151.63,151.58,29.29]
[1723384991094,0.12549,151.63,151.56,29.29]
[1723384991269,0.12549,151.63,151.57,20.0]
[1723384991469,0.37647,151.64,151.58,29.29]
[1723384992494,16.1565,151.68,151.6,29.29]
[1723384992987,0.12549,151.67,151.6,29.29]
[1723384993196,13.2790902,151.67,151.58,29.29]